bitfinex/quotes_SOLUSD_20250209
["timestamp","ask_amount","ask_price","bid_price","bid_amount"]
[1739106018725,13.66282853,201.74,201.71,0.063]
[1739106020125,0.9296867,201.73,201.71,0.063]
[1739106020536,0.25098,201.72,201.71,0.063]
[1739106025922,17.13292853,201.72,201.71,0.063]
[1739106027221,13.66282853,201.72,201.71,0.063]
[1739106028009,0.92969715,201.74,201.71,0.063]
[1739106028203,13.41184853,201.73,201.71,0.063]
[1739106028411,0.92970123,201.72,201.71,0.063]
[1739106029527,1.05519123,201.72,201.71,0.063]
[1739106029833,4.52529123,201.72,201.71,0.063]
[1739106031031,4.65078123,201.72,201.71,0.063]
[1739106031732,1.18068123,201.72,201.71,0.063]
[1739106034817,14.3416401,201.74,201.71,0.063]
[1739106035222,13.41184853,201.74,201.71,0.063]
[1739106036748,16.88164853,201.74,201.71,0.063]
[1739106036958,0.92967388,201.73,201.71,0.063]
[1739106037248,0.12549,201.72,201.71,0.063]
[1739106038521,0.25098,201.72,201.71,0.063]
[1739106039346,0.03,201.73,201.71,0.063]
[1739106057271,0.91006527,201.74,201.71,0.063]
[1739106057462,0.03,201.75,201.71,0.063]
[1739106057463,14.37156013,201.75,201.71,0.063]
[1739106058768,13.41184853,201.73,201.71,0.063]
[1739106058952,0.92988717,201.72,201.71,0.063]
[1739106059770,1.18086717,201.72,201.71,0.063]
[1739106060270,14.5927157,201.72,201.71,0.063]
[1739106060446,16.5629538,201.72,201.71,0.063]
[1739106060646,14.5927157,201.72,201.71,0.063]
[1739106062273,18.0628157,201.72,201.71,0.063]
[1739106062874,19.0330538,201.72,201.71,0.063]
[1739106063955,1.9702381,201.7,201.69,0.063]
[1739106064157,2.90042,201.7,201.69,0.063]
[1739106064356,22.95246853,201.7,201.69,0.063]
[1739106064665,22.95246853,201.7,201.63,0.063]
[1739106064666,1.9702381,201.67,201.63,0.063]
[1739106064858,19.78347059,201.67,201.63,0.063]
[1739106065267,21.9702381,201.64,201.63,0.063]
[1739106065468,36.31254146,201.64,201.63,0.063]
[1739106066471,21.9702381,201.61,201.57,0.063]
[1739106066783,43.48476365,201.61,201.57,0.063]
[1739106067155,42.61025365,201.61,201.57,0.063]
[1739106067350,43.61025365,201.61,201.57,0.063]
[1739106068479,42.61025365,201.61,201.57,0.063]
[1739106068686,42.73574365,201.61,201.57,0.063]
[1739106068990,43.73574365,201.61,201.57,0.063]
[1739106070081,43.73574365,201.61,201.6,0.0001]
[1739106070302,35.50757663,201.58,201.57,0.063]
[1739106070583,36.43838448,201.58,201.57,0.063]
[1739106072068,40.03637448,201.58,201.57,0.063]
[1739106072268,34.59363638,201.58,201.57,0.063]
[1739106072779,13.66282853,201.58,201.57,0.063]
[1739106076967,18.10556663,201.58,201.57,0.063]
[1739106077283,19.10556663,201.58,201.57,0.063]
[1739106080796,1.9702381,201.53,201.52,0.063]
[1739106081004,1.9702381,201.51,201.5,0.063]
[1739106081283,19.01309958,201.51,201.5,0.063]
[1739106081463,20.01309958,201.51,201.5,0.063]
[1739106081763,18.04286148,201.51,201.5,0.063]
[1739106081966,14.34286148,201.51,201.5,0.063]
[1739106082390,13.41184853,201.51,201.5,0.063]
[1739106083279,15.80093995,201.57,201.5,0.063]
[1739106083470,0.93070185,201.57,201.5,0.063]
[1739106083672,0.93046759,201.59,201.5,0.063]
[1739106084677,4.63034984,201.6,201.5,0.063]
[1739106085280,0.93034984,201.6,201.5,0.063]
[1739106085486,0.9303351,201.63,201.51,6.3768]
[1739106085886,0.03,201.6,201.51,6.3768]
[1739106086077,13.69282853,201.6,201.51,6.3768]
[1739106086284,0.12549,201.58,201.51,6.3768]
[1739106086874,0.15549,201.6,201.51,6.3768]
[1739106087073,0.03,201.6,201.54,20.0]
[1739106092199,0.03,201.6,201.54,21.20980455]
[1739106092403,0.03,201.6,201.55,20.12549]
[1739106092696,0.03,201.73,201.63,20.0]
[1739106093099,0.03,201.73,201.64,1.5777]
[1739106094283,0.03,201.73,201.64,2.79023381]
[1739106095683,0.03,201.73,201.65,20.12549]
[1739106095878,0.03,201.73,201.65,20.0]
[1739106097883,0.03,201.73,201.69,20.0]
[1739106098796,0.03,201.73,201.72,20.0]
[1739106104303,0.03,201.73,201.72,20.12549]
[1739106106314,0.03,201.73,201.72,20.0]
[1739106122127,0.03,201.73,201.71,1.24665238]
[1739106122424,0.03,201.73,201.68,20.0]
[1739106122724,0.03,201.73,201.69,0.12549]
[1739106125304,0.03,201.73,201.72,20.0]
[1739106125918,0.03,201.73,201.72,20.12549]
[1739106126747,0.03,201.73,201.72,20.0]
[1739106135224,0.03,201.73,201.72,20.25098]
[1739106135439,15.4392,201.86,201.73,0.12549]
[1739106135619,1.5392,201.86,201.73,0.12549]
[1739106136235,1.5392,201.86,201.76,20.0]
[1739106136439,6.381,201.88,201.78,20.0]
[1739106137538,0.03,201.88,201.78,20.0]
[1739106141444,0.03,201.88,201.78,21.26232727]
[1739106141624,0.03,201.88,201.75,73.82980756]
[1739106141625,0.03,201.88,201.75,67.66880756]
[1739106141826,13.44184853,201.88,201.75,67.66880756]
[1739106142026,13.41184853,201.86,201.78,20.0]
[1739106142227,0.92916514,201.85,201.78,20.0]
[1739106142934,0.12549,201.85,201.78,20.0]
[1739106143835,0.12549,201.85,201.75,1.27948304]
[1739106144249,0.25098,201.85,201.75,1.27948304]
[1739106144431,7.17036958,201.84,201.75,1.27948304]
[1739106144748,1.6307,201.83,201.75,1.27948304]
[1739106144937,0.92930056,201.82,201.75,1.27948304]
[1739106145136,2.55999697,201.83,201.75,1.27948304]
[1739106145338,1.6307,201.83,201.75,1.27948304]
[1739106146761,13.41184853,201.86,201.75,1.27948304]
[1739106148651,13.9,201.87,201.75,21.27948304]
[1739106149171,0.03,201.88,201.79,20.0]
[1739106149852,0.03,201.88,201.81,20.0]
[1739106152960,0.03,201.88,201.82,20.0]
[1739106156167,0.03,201.88,201.82,21.21970752]
[1739106167156,0.03,201.88,201.82,1.21970752]
[1739106167352,0.03,201.88,201.78,7.653]
[1739106167975,0.03,201.88,201.78,8.88429298]
[1739106168477,0.03,201.88,201.81,20.0]
[1739106169481,13.44184853,201.88,201.75,0.063]
[1739106169665,13.41184853,201.86,201.75,20.063]
[1739106169863,13.41184853,201.86,201.75,0.063]
[1739106169864,14.96004853,201.86,201.75,0.063]
[1739106170055,0.12549,201.85,201.75,0.063]
[1739106170255,0.92919488,201.84,201.75,0.063]
[1739106171178,13.41184853,201.84,201.75,20.063]
[1739106171392,1.67369,201.86,201.75,20.063]
[1739106171563,15.08553853,201.86,201.75,20.063]
[1739106171984,0.9702381,201.84,201.75,0.063]
[1739106172280,0.92934803,201.83,201.75,0.063]
[1739106172467,13.66282853,201.82,201.75,0.063]
[1739106172873,13.66282853,201.8,201.75,0.063]
[1739106175067,14.82932602,201.84,201.75,0.063]
[1739106175982,13.41184853,201.83,201.75,0.063]
[1739106176175,0.9293677,201.82,201.75,0.063]
[1739106177285,13.41184853,201.83,201.75,0.063]
[1739106178704,0.25098,201.82,201.75,0.063]
[1739106180191,1.18028209,201.82,201.75,0.063]
[1739106180379,0.25098,201.8,201.75,0.063]
[1739106180684,0.25098,201.78,201.75,0.063]
[1739106180904,0.25098,201.76,201.75,0.063]
[1739106181068,14.59239943,201.76,201.75,0.063]
[1739106182063,2.58199014,201.78,201.75,0.063]
[1739106182262,0.92949041,201.79,201.75,0.063]
[1739106182473,13.9,201.81,201.75,0.063]
[1739106183365,1.6524,201.84,201.75,0.063]
[1739106183771,0.03,201.88,201.75,0.063]
[1739106184079,14.62186541,201.88,201.75,0.063]
[1739106185867,18.08926541,201.88,201.75,0.063]
[1739106186367,20.05950351,201.88,201.75,0.063]
[1739106186563,19.05950351,201.88,201.75,0.063]
[1739106187389,13.66282853,201.86,201.75,0.063]
[1739106187590,13.66282853,201.84,201.75,0.063]
[1739106189513,0.12549,201.84,201.75,0.063]
[1739106189789,13.53733853,201.82,201.75,0.063]
[1739106190172,13.53733853,201.8,201.75,0.063]
[1739106190486,0.92942498,201.79,201.75,0.063]
[1739106190691,13.41184853,201.83,201.75,0.063]
[1739106190867,0.9294178,201.82,201.75,0.063]
[1739106191586,0.25098,201.81,201.75,0.063]
[1739106191891,13.66282853,201.79,201.75,0.063]
[1739106192091,13.66282853,201.77,201.75,0.063]
[1739106192285,14.59241463,201.76,201.75,0.063]
[1739106193479,0.9295861,201.76,201.75,0.063]
[1739106193693,0.92959873,201.78,201.75,0.063]
[1739106194477,13.66282853,201.77,201.75,0.063]
[1739106194686,14.5923773,201.77,201.75,0.063]
[1739106195268,18.0615773,201.77,201.75,0.063]
[1739106195772,19.0615773,201.77,201.75,0.063]
[1739106196092,28.28208663,201.76,201.75,0.063]
[1739106196475,14.38208663,201.76,201.75,0.063]
[1739106196685,20.83168663,201.76,201.75,0.063]
[1739106197396,20.83168663,201.76,201.6,0.063]
[1739106197397,13.53733853,201.71,201.6,0.063]
[1739106197568,13.53733853,201.69,201.6,0.063]
[1739106197775,13.53733853,201.67,201.6,0.063]
[1739106197998,0.93008469,201.66,201.6,0.063]
[1739106198379,13.66282853,201.65,201.6,0.063]
[1739106198980,13.66282853,201.63,201.6,0.063]
[1739106199395,0.93020084,201.62,201.6,0.063]
[1739106199588,13.41184853,201.61,201.6,0.063]
[1739106199900,13.9,201.65,201.6,0.063]
[1739106200097,5.4408381,201.7,201.6,0.063]
[1739106200098,0.93011344,201.64,201.6,0.063]
[1739106200293,13.41184853,201.63,201.6,0.063]
[1739106201404,13.41184853,201.66,201.6,0.063]
[1739106201622,13.41184853,201.64,201.6,0.063]
[1739106206191,96.9,201.68,201.6,0.063]
[1739106207682,13.66282853,201.67,201.6,0.063]
[1739106208392,0.25098,201.67,201.6,0.063]
[1739106209348,13.41184853,201.7,201.6,0.063]
[1739106209521,14.34171989,201.7,201.6,0.063]
[1739106209826,83.0,201.71,201.6,0.063]
[1739106209986,13.93,201.75,201.64,20.0]
[1739106210183,0.03,201.75,201.64,20.0]
[1739106210422,13.66282853,201.74,201.64,20.0]
[1739106210628,13.66282853,201.72,201.61,7.839]
[1739106210798,0.9299541,201.71,201.61,1.5096]
[1739106211118,13.66282853,201.7,201.61,1.5096]
[1739106211318,13.41184853,201.68,201.61,1.5096]
[1739106211484,13.41184853,201.66,201.61,1.5096]
[1739106211687,13.41184853,201.64,201.6,0.063]
[1739106212310,13.41184853,201.62,201.6,0.063]
[1739106212493,14.34212609,201.61,201.6,0.063]
[1739106213292,14.46761609,201.61,201.6,0.063]
[1739106214106,15.43785419,201.61,201.6,0.063]
[1739106214306,15.56334419,201.61,201.6,0.063]
[1739106217303,98.56334419,201.61,201.6,0.063]
[1739106219349,98.56334419,201.61,201.54,0.063]
[1739106219350,14.41184853,201.55,201.54,0.063]
[1739106219506,19.04266671,201.55,201.54,0.063]
[1739106220953,18.04266671,201.55,201.54,0.063]
[1739106221321,18.16815671,201.55,201.54,0.063]
[1739106221917,14.46815671,201.55,201.54,0.063]
[1739106222221,13.53733853,201.55,201.54,0.063]
[1739106222741,13.66282853,201.55,201.54,0.063]
[1739106224818,83.0,201.58,201.54,0.063]
[1739106225023,83.93041905,201.58,201.54,0.063]
[1739106226048,13.53733853,201.57,201.54,0.063]
[1739106226218,83.93041905,201.58,201.54,0.063]
[1739106226219,13.53733853,201.55,201.54,0.063]
[1739106227136,1.05610661,201.55,201.54,0.063]
[1739106229358,1.18159661,201.55,201.54,0.063]
[1739106231670,0.12549,201.55,201.54,0.063]
[1739106233654,1.05599498,201.55,201.54,0.063]
[1739106233964,34.46784351,201.55,201.54,0.063]
[1739106234139,134.84084351,201.55,201.54,0.063]
[1739106234340,133.91033853,201.55,201.54,0.063]
[1739106234738,120.01033853,201.55,201.54,0.063]
[1739106235349,120.13582853,201.55,201.54,0.063]
[1739106237055,116.66282853,201.55,201.54,0.063]
[1739106239488,96.66282853,201.55,201.54,0.063]
[1739106239688,13.66282853,201.55,201.54,0.063]
[1739106241559,18.06655978,201.55,201.54,0.063]
[1739106241789,31.96655978,201.55,201.54,0.063]
[1739106245377,28.49355978,201.55,201.54,0.063]
[1739106247497,31.96655978,201.55,201.54,0.063]
[1739106247869,28.49355978,201.55,201.54,0.063]
[1739106248801,31.96655978,201.55,201.54,0.063]
[1739106253609,32.96655978,201.55,201.54,0.063]
[1739106254194,27.30615978,201.55,201.54,0.063]
[1739106255483,31.00615978,201.55,201.54,0.063]
[1739106256688,19.65575978,201.55,201.54,0.063]
[1739106256994,23.35575978,201.55,201.54,0.063]
[1739106259196,24.35575978,201.55,201.54,0.063]
[1739106260397,20.0,201.51,201.5,0.063]
[1739106260606,20.93094072,201.51,201.5,0.063]
[1739106261085,0.93094072,201.51,201.5,0.063]
[1739106261492,14.46827925,201.51,201.5,0.063]
[1739106262498,14.59376925,201.51,201.5,0.063]
[1739106265602,97.59376925,201.51,201.5,0.063]
[1739106266404,101.06746925,201.51,201.5,0.063]
[1739106266603,102.03770735,201.51,201.5,0.063]
[1739106266990,103.03770735,201.51,201.5,0.063]
[1739106269208,20.03770735,201.51,201.5,0.063]
[1739106270202,1.9702381,201.49,201.48,0.063]
[1739106270409,16.31334788,201.49,201.48,0.063]
[1739106270909,21.9702381,201.46,201.45,0.063]
[1739106271204,36.31356855,201.46,201.45,0.0001]
[1739106271579,37.55096032,201.46,201.45,0.0001]
[1739106271788,0.9702381,201.4,201.37,0.03]
[1739106271986,19.01363974,201.4,201.37,0.03]
[1739106272412,18.04340164,201.4,201.37,0.03]
[1739106272710,19.01363974,201.4,201.37,0.03]
[1739106272906,14.34340164,201.4,201.37,0.03]
[1739106273803,13.66282853,201.4,201.37,0.03]
[1739106274008,1.90156456,201.49,201.37,0.03]
[1739106274211,1.90156456,201.49,201.4,1.546]
[1739106274212,0.93132646,201.49,201.4,1.546]
[1739106274390,13.9,201.48,201.4,1.546]
[1739106274586,0.25098,201.46,201.4,1.546]
[1739106275009,0.93094192,201.48,201.4,1.546]
[1739106275189,3.7,201.49,201.4,1.546]
[1739106275902,1.18176344,201.48,201.4,1.546]
[1739106276288,0.25098,201.46,201.4,1.546]
[1739106277527,3.7,201.49,201.42,20.0]
[1739106277894,13.41184853,201.48,201.42,20.0]
[1739106278294,13.41184853,201.48,201.4,1.546]
[1739106278295,1.05626963,201.47,201.4,1.546]
[1739106282300,0.12549,201.46,201.4,1.546]
[1739106282811,13.53733853,201.44,201.4,1.546]
[1739106283109,0.93089212,201.45,201.4,1.546]
[1739106283110,0.12549,201.45,201.4,1.546]
[1739106283314,13.41184853,201.44,201.4,1.546]
[1739106283900,13.41184853,201.44,201.39,0.063]
[1739106284493,83.96094463,201.47,201.39,0.063]
[1739106285320,13.53733853,201.46,201.39,0.063]
[1739106286499,0.12549,201.45,201.39,0.063]
[1739106291101,83.03,201.47,201.39,0.063]
[1739106291303,83.03,201.47,201.4,7.8668]
[1739106291821,13.41184853,201.46,201.4,7.8668]
[1739106293822,0.12549,201.45,201.4,7.8668]
[1739106294023,83.03,201.47,201.4,7.8668]
[1739106296205,0.03,201.46,201.4,7.8668]
[1739106298624,13.44184853,201.46,201.4,7.8668]
[1739106298799,13.41184853,201.44,201.4,1.6086]
[1739106299003,13.41184853,201.44,201.39,0.063]
[1739106299824,14.34292251,201.44,201.39,0.063]
[1739106301012,17.81792251,201.44,201.39,0.063]
[1739106302336,0.25098,201.43,201.39,0.063]
[1739106302529,83.93113308,201.45,201.39,0.063]
[1739106302732,83.0,201.45,201.39,0.063]
[1739106302917,13.93,201.46,201.39,0.063]
[1739106303114,0.03,201.46,201.39,0.063]
[1739106303435,0.03,201.46,201.4,6.1298]
[1739106304239,0.03,201.46,201.43,20.0]
[1739106304422,0.03,201.46,201.44,1.5262]
[1739106305732,13.66282853,201.45,201.39,0.063]
[1739106305939,33.66282853,201.41,201.39,0.063]
[1739106306135,28.49424766,201.4,201.39,0.063]
[1739106306517,31.96984766,201.4,201.39,0.063]
[1739106307717,34.89509777,201.4,201.39,0.063]
[1739106308015,31.41949777,201.4,201.39,0.063]
[1739106309337,28.49424766,201.4,201.39,0.063]
[1739106310141,14.59424766,201.4,201.39,0.063]
[1739106311339,1.9702381,201.32,201.29,0.03]
[1739106311542,33.41184853,201.3,201.29,0.03]
[1739106312247,117.38208663,201.3,201.29,0.03]
[1739106312439,126.12278663,201.3,201.29,0.03]
[1739106313225,129.04066112,201.3,201.29,0.03]
[1739106313438,20.9702381,201.26,201.18,0.063]
[1739106313620,13.41184853,201.24,201.18,0.063]
[1739106313823,13.41184853,201.22,201.18,0.063]
[1739106314118,1.9702381,201.24,201.18,0.063]
[1739106314119,13.41184853,201.2,201.18,0.063]
[1739106314326,14.34410904,201.19,201.18,0.063]
[1739106314936,14.59508904,201.19,201.18,0.063]
[1739106315534,18.45508904,201.19,201.18,0.063]
[1739106317144,14.59508904,201.19,201.18,0.063]
[1739106317458,13.66282853,201.19,201.18,0.063]
[1739106318443,0.9321264,201.22,201.18,0.063]
[1739106318655,13.9,201.27,201.18,0.063]
[1739106318862,3.86,201.29,201.19,6.5122]
[1739106319158,3.86,201.29,201.22,20.0]
[1739106319524,3.89,201.29,201.22,20.0]
[1739106322148,0.03,201.29,201.22,20.0]
[1739106322847,0.03,201.29,201.22,21.0]
[1739106323737,0.03,201.29,201.25,1.0]
[1739106324042,0.03,201.29,201.26,21.0]
[1739106324731,0.03,201.29,201.27,6.3835]
[1739106325150,0.03,201.29,201.27,7.3835]
[1739106333355,0.03,201.29,201.27,6.3835]
[1739106333738,0.03,201.29,201.27,7.3835]
[1739106334760,0.03,201.29,201.27,6.3835]
[1739106337852,0.03,201.29,201.27,7.3835]
[1739106339269,0.03,201.29,201.27,8.3835]
[1739106341362,13.66282853,201.42,201.31,21.0]
[1739106341568,107.0913,201.46,201.31,21.0]
[1739106342853,107.0913,201.46,201.32,1.0]
[1739106343254,13.53733853,201.45,201.32,1.0]
[1739106343645,13.53733853,201.45,201.32,2.26415633]
[1739106344763,13.53733853,201.43,201.32,1.26415633]
[1739106344974,13.53733853,201.43,201.31,20.0]
[1739106344975,0.12549,201.42,201.31,20.0]
[1739106345764,13.66282853,201.4,201.31,1.25869185]
[1739106345974,13.66282853,201.38,201.3,20.0]
[1739106346177,14.83128617,201.41,201.3,20.0]
[1739106346654,13.66282853,201.4,201.3,20.0]
[1739106347772,13.66282853,201.4,201.3,21.26670312]
[1739106348166,13.66282853,201.4,201.3,20.0]
[1739106349174,13.41184853,201.38,201.3,20.0]
[1739106350559,0.25098,201.37,201.3,20.0]
[1739106351378,13.41184853,201.4,201.3,20.0]
[1739106351672,0.25098,201.39,201.3,20.0]
[1739106354575,14.83120795,201.41,201.3,20.0]
[1739106354880,13.41184853,201.4,201.3,20.0]
[1739106356582,13.44184853,201.4,201.3,20.0]
[1739106357381,0.03,201.4,201.31,21.5162]
[1739106357864,0.03,201.4,201.32,2.0]
[1739106359582,0.03,201.4,201.31,21.5162]
[1739106360880,0.03,201.4,201.33,20.0]
[1739106362077,0.03,201.46,201.39,20.0]
[1739106368091,0.03,201.46,201.39,20.063]
[1739106375988,13.41184853,201.45,201.39,0.063]
[1739106376174,13.41184853,201.43,201.39,0.063]
[1739106376371,0.93122874,201.42,201.39,0.063]
[1739106377495,13.9,201.44,201.39,0.063]
[1739106377676,13.41184853,201.42,201.39,0.063]
[1739106378469,13.41184853,201.4,201.39,0.063]
[1739106379497,0.25098,201.4,201.39,0.063]
[1739106380083,4.65784699,201.4,201.39,0.063]
[1739106382176,1.18224699,201.4,201.39,0.063]
[1739106383095,0.25098,201.4,201.39,0.063]
[1739106386095,0.93116071,201.44,201.39,0.063]
[1739106386402,13.41184853,201.43,201.39,0.063]
[1739106386590,13.41184853,201.41,201.39,0.063]
[1739106387180,96.9,201.45,201.39,0.063]
[1739106387181,0.93112961,201.4,201.39,0.063]
[1739106388286,13.41184853,201.41,201.39,0.063]
[1739106388486,0.93124865,201.4,201.39,0.063]
[1739106389906,1.18222865,201.4,201.39,0.063]
[1739106391308,0.25098,201.4,201.39,0.063]
[1739106391495,96.9,201.44,201.39,0.063]
[1739106391904,13.41184853,201.43,201.39,0.063]
[1739106392089,0.12549,201.42,201.39,0.063]
[1739106392604,0.15549,201.42,201.39,0.063]
[1739106393703,1.05658436,201.41,201.39,0.063]
[1739106394206,0.12549,201.41,201.39,0.063]
[1739106394816,0.15549,201.42,201.39,0.063]
[1739106395312,0.03,201.42,201.39,0.063]
[1739106406918,0.03,201.42,201.39,1.7293]
[1739106408021,0.03,201.46,201.42,20.0]
[1739106409622,0.03,201.46,201.39,7.9623]
[1739106409807,13.44184853,201.46,201.39,0.063]
[1739106410007,13.41184853,201.44,201.39,0.063]
[1739106411324,4.43570043,201.46,201.39,0.063]
[1739106411927,0.25098,201.45,201.39,0.063]
[1739106413607,13.53733853,201.43,201.39,0.063]
[1739106413807,13.53733853,201.41,201.39,0.063]
[1739106414929,0.12549,201.41,201.39,0.063]
[1739106417517,0.12549,201.4,201.39,0.063]
[1739106420933,13.53733853,201.41,201.39,0.063]
[1739106421531,0.12549,201.4,201.39,0.063]
[1739106421735,14.46854976,201.4,201.39,0.063]
[1739106422722,18.06963976,201.4,201.39,0.063]
[1739106423232,19.03987786,201.4,201.39,0.063]
[1739106423540,18.06963976,201.4,201.39,0.063]
[1739106427335,28.49403976,201.4,201.39,0.063]
[1739106427548,27.56282853,201.4,201.39,0.063]
[1739106427928,13.66282853,201.4,201.39,0.063]
[1739106428657,0.03,201.42,201.39,0.063]
[1739106430434,13.66282853,201.41,201.39,0.063]
[1739106431029,14.5939356,201.41,201.39,0.063]
[1739106431538,13.66282853,201.41,201.39,0.063]
[1739106434964,0.03,201.42,201.39,0.063]
[1739106436733,0.03,201.42,201.41,20.0]
[1739106437447,0.03,201.46,201.42,20.0]
[1739106437966,0.03,201.46,201.43,1.0]
[1739106441854,0.03,201.46,201.43,2.0]
[1739106442530,0.03,201.46,201.43,1.0]
[1739106442735,0.03,201.46,201.42,20.0]
[1739106444141,0.03,201.46,201.41,1.2164796]
[1739106444347,0.03,201.46,201.4,1.62]
[1739106444862,0.03,201.46,201.42,20.0]
[1739106445661,0.03,201.46,201.39,0.063]
[1739106446448,13.56733853,201.46,201.39,0.063]
[1739106447943,17.04193853,201.46,201.39,0.063]
[1739106449754,0.03,201.46,201.39,0.063]
[1739106454466,14.37265695,201.46,201.39,0.063]
[1739106454839,13.41184853,201.45,201.39,0.063]
[1739106455043,13.41184853,201.43,201.39,0.063]
[1739106456158,0.25098,201.44,201.39,0.063]
[1739106456558,4.40627135,201.43,201.39,0.063]
[1739106457668,13.66282853,201.42,201.39,0.063]
[1739106457856,4.40627135,201.43,201.39,0.063]
[1739106457857,13.66282853,201.4,201.39,0.063]
[1739106458671,17.13842853,201.4,201.39,0.063]
[1739106460575,13.66282853,201.4,201.39,0.063]
[1739106460868,1.6246,201.41,201.39,0.063]
[1739106461061,18.30626799,201.44,201.39,0.063]
[1739106461247,13.53733853,201.43,201.39,0.063]
[1739106462047,17.01243853,201.43,201.39,0.063]
[1739106462473,0.12549,201.42,201.39,0.063]
[1739106464186,1.6546,201.46,201.39,0.063]
[1739106465067,0.03,201.46,201.39,0.063]
[1739106465887,0.03,201.46,201.39,20.063]
[1739106467390,0.03,201.46,201.39,21.30939812]
[1739106470599,0.03,201.46,201.41,20.0]
[1739106480812,0.03,201.46,201.43,1.0]
[1739106480986,0.03,201.5,201.43,2.5963]
[1739106481180,0.03,201.5,201.43,1.5963]
[1739106481608,0.03,201.5,201.41,87.66880756]
[1739106481906,0.28098,201.5,201.41,67.66880756]
[1739106482082,0.25098,201.48,201.39,1.30939812]
[1739106482275,13.41184853,201.46,201.39,1.30939812]
[1739106482579,13.41184853,201.46,201.39,20.063]
[1739106482783,13.41184853,201.46,201.39,0.063]
[1739106483094,13.41184853,201.46,201.39,20.063]
[1739106483787,83.0,201.48,201.39,20.063]
[1739106486884,14.3426629,201.47,201.39,0.063]
[1739106488279,96.9,201.46,201.39,0.063]
[1739106488613,13.41184853,201.43,201.39,0.063]
[1739106488905,19.95034853,201.4,201.39,0.063]
[1739106489103,20.88176306,201.4,201.39,0.063]
[1739106490510,21.13274306,201.4,201.39,0.063]
[1739106491005,20.0,201.36,201.29,0.063]
[1739106491209,0.25098,201.34,201.29,0.063]
[1739106491385,23.72,201.36,201.29,0.063]
[1739106492109,13.41184853,201.35,201.29,0.063]
[1739106493712,3.72,201.36,201.29,0.063]
[1739106495810,13.41184853,201.35,201.29,0.063]
[1739106496587,3.72,201.36,201.29,0.063]
[1739106496790,13.41184853,201.38,201.29,0.063]
[1739106497014,1.6538,201.44,201.29,0.063]
[1739106497015,100.62,201.43,201.29,0.063]
[1739106497322,105.02644848,201.43,201.29,7.9171]
[1739106498017,13.41184853,201.42,201.29,7.9171]
[1739106498220,13.41184853,201.4,201.29,7.9171]
[1739106498518,0.93128905,201.39,201.29,1.6233]
[1739106499502,3.476,201.38,201.29,1.6233]
[1739106500195,13.41184853,201.36,201.29,1.6233]
[1739106501026,13.66282853,201.37,201.29,1.6233]
[1739106502018,0.12549,201.35,201.29,0.063]
[1739106503491,14.34326782,201.37,201.29,0.063]
[1739106503697,13.41184853,201.37,201.29,0.063]
[1739106506005,96.9,201.38,201.29,0.063]
[1739106506207,3.4753,201.42,201.29,0.063]
[1739106506520,13.66282853,201.42,201.29,1.063]
[1739106506826,13.66282853,201.42,201.3,1.5925]
[1739106507010,13.66282853,201.42,201.34,20.0]
[1739106507622,0.25098,201.4,201.31,6.3684]